[Event "Titled Tuesday Blitz January 17 Early 2023"]
[White "Samunenkov, Ihor"]
[Black "Arabidze, Meri"]
[WhiteFideId "14187086"]
[BlackFideId "13604040"]
[WhiteElo "2501"]
[BlackElo "2441"]
[Result "1-0"]
[Round "10"]
[TimeControl "180+2"]
[Date "2023.01.17"]
[WhiteClock "0:00:06"]
[BlackClock "0:00:10"]

1. d4 {[%clk 0:03:00]}  f5 {[%clk 0:02:59]} 2. Bg5 {[%clk 0:02:57]}  Nf6 {[%clk 0:02:59]} 3. Bxf6 {[%clk 0:02:43]}  exf6 {[%clk 0:03:00]} 4. c4 {[%clk 0:02:43]}  d5 {[%clk 0:02:58]} 5. e3 {[%clk 0:02:41]}  Nc6 {[%clk 0:02:47]} 6. Nc3 {[%clk 0:02:36]}  Bb4 {[%clk 0:02:47]} 7. cxd5 {[%clk 0:02:34]}  Qxd5 {[%clk 0:02:48]} 8. Ne2 {[%clk 0:02:28]}  O-O {[%clk 0:02:40]} 9. Nf4 {[%clk 0:02:19]}  Qf7 {[%clk 0:02:40]} 10. Bd3 {[%clk 0:02:03]}  g6 {[%clk 0:02:36]} 11. O-O {[%clk 0:02:02]}  Bd6 {[%clk 0:02:35]} 12. Nce2 {[%clk 0:01:55]}  g5 {[%clk 0:02:25]} 13. Nh3 {[%clk 0:01:35]}  f4 {[%clk 0:02:24]} 14. Nc3 {[%clk 0:01:16]}  f3 {[%clk 0:02:02]} 15. Qb3 {[%clk 0:00:55]}  Be6 {[%clk 0:01:46]} 16. d5 {[%clk 0:00:23]}  Bxh3 {[%clk 0:01:46]} 17. gxh3 {[%clk 0:00:24]}  Ne7 {[%clk 0:01:33]} 18. Qc2 {[%clk 0:00:06]}  Qh5 {[%clk 0:01:29]} 19. Bf5 {[%clk 0:00:05]}  Kh8 {[%clk 0:01:13]} 20. Kh1 {[%clk 0:00:05]}  Ng6 {[%clk 0:00:55]} 21. Qe4 {[%clk 0:00:04]}  Nh4 {[%clk 0:00:51]} 22. Qg4 {[%clk 0:00:04]}  Qe8 {[%clk 0:00:49]} 23. Ne4 {[%clk 0:00:02]}  Qe5 {[%clk 0:00:35]} 24. Ng3 {[%clk 0:00:02]}  Qe7 {[%clk 0:00:22]} 25. Rac1 {[%clk 0:00:02]}  Rae8 {[%clk 0:00:22]} 26. Rc4 {[%clk 0:00:02]}  Be5 {[%clk 0:00:20]} 27. b3 {[%clk 0:00:02]}  Qg7 {[%clk 0:00:19]} 28. Rcc1 {[%clk 0:00:02]}  Re7 {[%clk 0:00:18]} 29. Nh5 {[%clk 0:00:01]}  Qh6 {[%clk 0:00:18]} 30. Ng3 {[%clk 0:00:01]}  Rfe8 {[%clk 0:00:17]} 31. Rg1 {[%clk 0:00:01]}  Qf8 {[%clk 0:00:17]} 32. Rcd1 {[%clk 0:00:02]}  h5 {[%clk 0:00:17]} 33. Qxh5+ {[%clk 0:00:02]}  Kg8 {[%clk 0:00:15]} 34. Qg4 {[%clk 0:00:02]}  Rg7 {[%clk 0:00:15]} 35. Nh5 {[%clk 0:00:02]}  Rge7 {[%clk 0:00:14]} 36. Qxh4 {[%clk 0:00:02]}  Qh6 {[%clk 0:00:12]} 37. Qg4 {[%clk 0:00:02]}  Kf8 {[%clk 0:00:10]} 38. Qxf3 {[%clk 0:00:03]}  Rh7 {[%clk 0:00:08]} 39. Bxh7 {[%clk 0:00:03]}  Qxh7 {[%clk 0:00:09]} 40. Nxf6 {[%clk 0:00:03]}  Qf7 {[%clk 0:00:08]} 41. Nd7+ {[%clk 0:00:04]}  Ke7 {[%clk 0:00:08]} 42. Qxf7+ {[%clk 0:00:04]}  Kxf7 {[%clk 0:00:09]} 43. Nxe5+ {[%clk 0:00:05]}  Rxe5 {[%clk 0:00:10]} 44. Rc1 {[%clk 0:00:06]}  Rxd5 {[%clk 0:00:10]} 45. Rxc7+ {[%clk 0:00:06]}  Kf6 {[%clk 0:00:11]} 46. Rxb7 {[%clk 0:00:07]}  Rd2 {[%clk 0:00:11]} 47. Rxa7 {[%clk 0:00:07]}  Rxf2 {[%clk 0:00:10]} 48. Ra5 {[%clk 0:00:06]} 1-0


[Site "https://www.chess.com"]

[Event "Titled Tuesday Blitz January 17 Early 2023"]
[White "Szpar, Milosz"]
[Black "Pakleza, Zbigniew"]
[WhiteFideId "1184989"]
[BlackFideId "1119290"]
[WhiteElo "2447"]
[BlackElo "2494"]
[Result "1/2-1/2"]
[Round "10"]
[TimeControl "180+2"]
[Date "2023.01.17"]
[WhiteClock "0:00:05"]
[BlackClock "0:00:06"]

1. e4 {[%clk 0:03:00]}  d6 {[%clk 0:03:00]} 2. d4 {[%clk 0:03:00]}  Nf6 {[%clk 0:03:00]} 3. Bd3 {[%clk 0:03:01]}  e5 {[%clk 0:03:00]} 4. c3 {[%clk 0:03:00]}  d5 {[%clk 0:03:00]} 5. dxe5 {[%clk 0:03:01]}  dxe4 {[%clk 0:03:01]} 6. Bb5+ {[%clk 0:02:52]}  c6 {[%clk 0:03:01]} 7. Qxd8+ {[%clk 0:02:32]}  Kxd8 {[%clk 0:03:02]} 8. exf6 {[%clk 0:02:31]}  cxb5 {[%clk 0:03:02]} 9. fxg7 {[%clk 0:02:32]}  Bxg7 {[%clk 0:03:02]} 10. Bg5+ {[%clk 0:02:30]}  Kc7 {[%clk 0:02:59]} 11. Bf4+ {[%clk 0:02:30]}  Kb6 {[%clk 0:02:51]} 12. Nd2 {[%clk 0:02:30]}  Bf5 {[%clk 0:02:46]} 13. Ne2 {[%clk 0:02:29]}  Bg6 {[%clk 0:02:42]} 14. h4 {[%clk 0:02:22]}  h5 {[%clk 0:02:38]} 15. Be3+ {[%clk 0:02:19]}  Kc7 {[%clk 0:02:22]} 16. Nf4 {[%clk 0:02:18]}  Re8 {[%clk 0:01:25]} 17. Nf1 {[%clk 0:02:18]}  Nd7 {[%clk 0:01:15]} 18. Ng3 {[%clk 0:02:18]}  Ne5 {[%clk 0:01:15]} 19. Ngxh5 {[%clk 0:02:09]}  Bxh5 {[%clk 0:01:10]} 20. Nxh5 {[%clk 0:02:09]}  Nd3+ {[%clk 0:01:11]} 21. Ke2 {[%clk 0:02:08]}  Be5 {[%clk 0:01:12]} 22. g4 {[%clk 0:01:52]}  Nxb2 {[%clk 0:01:06]} 23. Ng3 {[%clk 0:01:39]}  Bh8 {[%clk 0:00:51]} 24. Rac1 {[%clk 0:01:18]}  Nc4 {[%clk 0:00:48]} 25. h5 {[%clk 0:01:11]}  a5 {[%clk 0:00:45]} 26. h6 {[%clk 0:01:10]}  Re6 {[%clk 0:00:43]} 27. Bf4+ {[%clk 0:01:06]}  Kb6 {[%clk 0:00:40]} 28. Rh5 {[%clk 0:01:02]}  Rg8 {[%clk 0:00:32]} 29. Rb1 {[%clk 0:00:50]}  Rxg4 {[%clk 0:00:32]} 30. Rbxb5+ {[%clk 0:00:50]}  Ka6 {[%clk 0:00:29]} 31. Bc7 {[%clk 0:00:46]}  b6 {[%clk 0:00:22]} 32. Rbf5 {[%clk 0:00:25]}  e3 {[%clk 0:00:16]} 33. f3 {[%clk 0:00:25]}  Rgg6 {[%clk 0:00:15]} 34. Bf4 {[%clk 0:00:24]}  Bxc3 {[%clk 0:00:13]} 35. h7 {[%clk 0:00:22]}  Re8 {[%clk 0:00:10]} 36. Rxf7 {[%clk 0:00:21]}  Rd8 {[%clk 0:00:06]} 37. Ne4 {[%clk 0:00:10]}  Rg2+ {[%clk 0:00:02]} 38. Kf1 {[%clk 0:00:11]}  Rc2 {[%clk 0:00:03]} 39. Nxc3 {[%clk 0:00:09]}  Rxc3 {[%clk 0:00:01]} 40. Rd5 {[%clk 0:00:09]}  Rh8 {[%clk 0:00:01]} 41. Ke2 {[%clk 0:00:07]}  Rc2+ {[%clk 0:00:01]} 42. Kd3 {[%clk 0:00:07]}  Rxa2 {[%clk 0:00:02]} 43. Kxc4 {[%clk 0:00:08]}  e2 {[%clk 0:00:02]} 44. Re5 {[%clk 0:00:08]}  Ra4+ {[%clk 0:00:03]} 45. Kd3 {[%clk 0:00:08]}  Ra3+ {[%clk 0:00:03]} 46. Kxe2 {[%clk 0:00:08]}  Ra2+ {[%clk 0:00:03]} 47. Kf1 {[%clk 0:00:08]}  Ra1+ {[%clk 0:00:03]} 48. Kf2 {[%clk 0:00:08]}  Rh1 {[%clk 0:00:03]} 49. Ree7 {[%clk 0:00:08]}  a4 {[%clk 0:00:03]} 50. Be5 {[%clk 0:00:08]}  Rc8 {[%clk 0:00:02]} 51. h8=Q {[%clk 0:00:07]}  Rhxh8 {[%clk 0:00:02]} 52. Bxh8 {[%clk 0:00:08]}  Rxh8 {[%clk 0:00:02]} 53. Rf5 {[%clk 0:00:08]}  Rc8 {[%clk 0:00:02]} 54. Re4 {[%clk 0:00:08]}  b5 {[%clk 0:00:02]} 55. Rf6+ {[%clk 0:00:07]}  Ka5 {[%clk 0:00:02]} 56. Rf7 {[%clk 0:00:07]}  Ra8 {[%clk 0:00:02]} 57. f4 {[%clk 0:00:07]}  a3 {[%clk 0:00:03]} 58. Rb7 {[%clk 0:00:05]}  a2 {[%clk 0:00:02]} 59. Re1 {[%clk 0:00:04]}  Kb4 {[%clk 0:00:03]} 60. f5 {[%clk 0:00:03]}  Kc4 {[%clk 0:00:03]} 61. f6 {[%clk 0:00:03]}  a1=Q {[%clk 0:00:03]} 62. Rxa1 {[%clk 0:00:03]}  Rxa1 {[%clk 0:00:04]} 63. f7 {[%clk 0:00:03]}  Ra8 {[%clk 0:00:04]} 64. Kf3 {[%clk 0:00:03]}  b4 {[%clk 0:00:04]} 65. Kf4 {[%clk 0:00:04]}  b3 {[%clk 0:00:04]} 66. Ke5 {[%clk 0:00:04]}  Kc3 {[%clk 0:00:04]} 67. Kf6 {[%clk 0:00:04]}  Rf8 {[%clk 0:00:03]} 68. Ke7 {[%clk 0:00:02]}  Rxf7+ {[%clk 0:00:04]} 69. Kxf7 {[%clk 0:00:03]}  b2 {[%clk 0:00:05]} 70. Ke6 {[%clk 0:00:04]}  Kc2 {[%clk 0:00:05]} 71. Kd5 {[%clk 0:00:04]}  b1=Q {[%clk 0:00:05]} 72. Rxb1 {[%clk 0:00:05]}  Kxb1 {[%clk 0:00:06]} 1/2-1/2


[Site "https://www.chess.com"]

[Event "Titled Tuesday Blitz January 17 Early 2023"]
[White "Harsha Bharathakoti"]
[Black "Subelj, Jan"]
[WhiteFideId "5078776"]
[BlackFideId "14618583"]
[WhiteElo "2602"]
[BlackElo "2513"]
[Result "1-0"]
[Round "10"]
[TimeControl "180+2"]
[Date "2023.01.17"]
[WhiteClock "0:00:07"]
[BlackClock "0:00:01"]

1. e4 {[%clk 0:03:00]}  b6 {[%clk 0:02:59]} 2. d4 {[%clk 0:03:00]}  Bb7 {[%clk 0:02:52]} 3. Bd3 {[%clk 0:03:00]}  e6 {[%clk 0:02:52]} 4. Nf3 {[%clk 0:03:01]}  c5 {[%clk 0:02:50]} 5. c3 {[%clk 0:02:57]}  Nf6 {[%clk 0:02:46]} 6. Qe2 {[%clk 0:02:57]}  cxd4 {[%clk 0:02:42]} 7. cxd4 {[%clk 0:02:58]}  d5 {[%clk 0:02:43]} 8. Be3 {[%clk 0:02:58]}  dxe4 {[%clk 0:02:40]} 9. Bb5+ {[%clk 0:02:53]}  Nbd7 {[%clk 0:02:37]} 10. Ne5 {[%clk 0:02:53]}  a6 {[%clk 0:02:36]} 11. Nxd7 {[%clk 0:02:45]}  Nxd7 {[%clk 0:02:37]} 12. Ba4 {[%clk 0:02:45]}  Bb4+ {[%clk 0:02:26]} 13. Nc3 {[%clk 0:02:42]}  O-O {[%clk 0:02:20]} 14. O-O {[%clk 0:02:42]}  Rc8 {[%clk 0:02:16]} 15. Rac1 {[%clk 0:02:40]}  Nf6 {[%clk 0:02:13]} 16. Rfd1 {[%clk 0:02:36]}  h6 {[%clk 0:02:12]} 17. Bb3 {[%clk 0:02:15]}  b5 {[%clk 0:02:05]} 18. h3 {[%clk 0:02:08]}  Qd7 {[%clk 0:01:56]} 19. d5 {[%clk 0:02:00]}  exd5 {[%clk 0:01:46]} 20. Bd4 {[%clk 0:01:59]}  Bxc3 {[%clk 0:01:42]} 21. Rxc3 {[%clk 0:01:47]}  Rxc3 {[%clk 0:01:41]} 22. Bxc3 {[%clk 0:01:47]}  Qf5 {[%clk 0:01:36]} 23. Qe3 {[%clk 0:01:40]}  Qg5 {[%clk 0:01:16]} 24. Qb6 {[%clk 0:01:32]}  Ba8 {[%clk 0:01:13]} 25. Qxa6 {[%clk 0:01:27]}  e3 {[%clk 0:01:11]} 26. Bxf6 {[%clk 0:01:08]}  gxf6 {[%clk 0:01:12]} 27. Qxb5 {[%clk 0:01:07]}  Kh8 {[%clk 0:01:00]} 28. Qc5 {[%clk 0:00:40]}  Rg8 {[%clk 0:00:56]} 29. g3 {[%clk 0:00:34]}  exf2+ {[%clk 0:00:29]} 30. Qxf2 {[%clk 0:00:35]}  Qxg3+ {[%clk 0:00:29]} 31. Qxg3 {[%clk 0:00:35]}  Rxg3+ {[%clk 0:00:30]} 32. Kh2 {[%clk 0:00:31]}  Re3 {[%clk 0:00:29]} 33. Rd2 {[%clk 0:00:28]}  Kg7 {[%clk 0:00:28]} 34. Bd1 {[%clk 0:00:11]}  Bb7 {[%clk 0:00:24]} 35. b4 {[%clk 0:00:11]}  Bc8 {[%clk 0:00:22]} 36. b5 {[%clk 0:00:08]}  Rxh3+ {[%clk 0:00:21]} 37. Kg2 {[%clk 0:00:09]}  Ra3 {[%clk 0:00:20]} 38. Bb3 {[%clk 0:00:07]}  Be6 {[%clk 0:00:20]} 39. Rd4 {[%clk 0:00:05]}  Kf8 {[%clk 0:00:17]} 40. b6 {[%clk 0:00:05]}  Ra8 {[%clk 0:00:15]} 41. a4 {[%clk 0:00:05]}  Ke7 {[%clk 0:00:14]} 42. Rb4 {[%clk 0:00:06]}  Kd6 {[%clk 0:00:10]} 43. b7 {[%clk 0:00:06]}  Rb8 {[%clk 0:00:10]} 44. a5 {[%clk 0:00:04]}  Kc5 {[%clk 0:00:10]} 45. a6 {[%clk 0:00:05]}  Kxb4 {[%clk 0:00:09]} 46. a7 {[%clk 0:00:05]}  Rxb7 {[%clk 0:00:09]} 47. a8=Q {[%clk 0:00:05]}  Rb5 {[%clk 0:00:08]} 48. Bd1 {[%clk 0:00:05]}  Kc5 {[%clk 0:00:08]} 49. Qf8+ {[%clk 0:00:06]}  Kd4 {[%clk 0:00:08]} 50. Qxh6 {[%clk 0:00:07]}  Rb2+ {[%clk 0:00:07]} 51. Kf1 {[%clk 0:00:07]}  Rb1 {[%clk 0:00:07]} 52. Qxf6+ {[%clk 0:00:07]}  Kc5 {[%clk 0:00:06]} 53. Qc3+ {[%clk 0:00:07]}  Kd6 {[%clk 0:00:06]} 54. Qg3+ {[%clk 0:00:06]}  Ke7 {[%clk 0:00:05]} 55. Ke2 {[%clk 0:00:06]}  d4 {[%clk 0:00:04]} 56. Qh4+ {[%clk 0:00:05]}  Kf8 {[%clk 0:00:02]} 57. Qxd4 {[%clk 0:00:06]}  Rb8 {[%clk 0:00:01]} 58. Qh8+ {[%clk 0:00:06]}  Ke7 {[%clk 0:00:01]} 59. Qxb8 {[%clk 0:00:07]} 1-0


[Site "https://www.chess.com"]

[Event "Titled Tuesday Blitz January 17 Early 2023"]
[White "Maximov, Dmitry"]
[Black "Yelisieiev, Yevhenii"]
[WhiteFideId "14105659"]
[BlackFideId "14139642"]
[WhiteElo "2497"]
[BlackElo "2418"]
[Result "1-0"]
[Round "10"]
[TimeControl "180+2"]
[Date "2023.01.17"]
[WhiteClock "0:00:05"]
[BlackClock "0:00:08"]

1. e4 {[%clk 0:03:00]}  d6 {[%clk 0:02:59]} 2. d4 {[%clk 0:03:00]}  Nf6 {[%clk 0:02:59]} 3. Nc3 {[%clk 0:03:01]}  e5 {[%clk 0:02:59]} 4. Nge2 {[%clk 0:03:00]}  c6 {[%clk 0:02:57]} 5. h3 {[%clk 0:02:59]}  Be7 {[%clk 0:02:55]} 6. g4 {[%clk 0:02:59]}  b5 {[%clk 0:02:55]} 7. a3 {[%clk 0:02:55]}  a5 {[%clk 0:02:52]} 8. Bg2 {[%clk 0:02:54]}  Ba6 {[%clk 0:02:52]} 9. Ng3 {[%clk 0:02:41]}  exd4 {[%clk 0:02:18]} 10. Nce2 {[%clk 0:02:37]}  O-O {[%clk 0:02:05]} 11. O-O {[%clk 0:02:27]}  d5 {[%clk 0:01:52]} 12. exd5 {[%clk 0:02:13]}  Nxd5 {[%clk 0:01:48]} 13. Nxd4 {[%clk 0:02:14]}  Bb7 {[%clk 0:01:32]} 14. Ndf5 {[%clk 0:01:41]}  Bc5 {[%clk 0:01:14]} 15. Ne4 {[%clk 0:01:39]}  Qb6 {[%clk 0:00:59]} 16. Qf3 {[%clk 0:01:15]}  Nd7 {[%clk 0:00:53]} 17. g5 {[%clk 0:01:13]}  Ne5 {[%clk 0:00:53]} 18. Qg3 {[%clk 0:01:13]}  Ng6 {[%clk 0:00:52]} 19. h4 {[%clk 0:01:09]}  Rfe8 {[%clk 0:00:35]} 20. h5 {[%clk 0:01:09]}  Nge7 {[%clk 0:00:35]} 21. Nh6+ {[%clk 0:01:01]}  Kf8 {[%clk 0:00:31]} 22. g6 {[%clk 0:00:44]}  hxg6 {[%clk 0:00:27]} 23. hxg6 {[%clk 0:00:44]}  Nxg6 {[%clk 0:00:25]} 24. Nf5 {[%clk 0:00:30]}  Bc8 {[%clk 0:00:22]} 25. Nfd6 {[%clk 0:00:23]}  Bxd6 {[%clk 0:00:21]} 26. Nxd6 {[%clk 0:00:21]}  Re6 {[%clk 0:00:21]} 27. Bg5 {[%clk 0:00:15]}  Qc7 {[%clk 0:00:19]} 28. Nxc8 {[%clk 0:00:07]}  Rxc8 {[%clk 0:00:19]} 29. f4 {[%clk 0:00:06]}  Re3 {[%clk 0:00:17]} 30. Qg4 {[%clk 0:00:05]}  Rce8 {[%clk 0:00:15]} 31. Rad1 {[%clk 0:00:04]}  Qb6 {[%clk 0:00:14]} 32. Kh1 {[%clk 0:00:03]}  Re2 {[%clk 0:00:13]} 33. f5 {[%clk 0:00:04]}  Ne5 {[%clk 0:00:12]} 34. Qxe2 {[%clk 0:00:04]}  f6 {[%clk 0:00:11]} 35. Bd2 {[%clk 0:00:03]}  Nc4 {[%clk 0:00:10]} 36. Qh5 {[%clk 0:00:03]}  Kg8 {[%clk 0:00:10]} 37. Rde1 {[%clk 0:00:03]}  Re5 {[%clk 0:00:09]} 38. Rxe5 {[%clk 0:00:03]}  Nxe5 {[%clk 0:00:09]} 39. Qe8+ {[%clk 0:00:03]}  Kh7 {[%clk 0:00:10]} 40. Bxd5 {[%clk 0:00:01]}  cxd5 {[%clk 0:00:10]} 41. Rf4 {[%clk 0:00:02]}  g5 {[%clk 0:00:08]} 42. fxg6+ {[%clk 0:00:02]}  Nxg6 {[%clk 0:00:09]} 43. Qf7+ {[%clk 0:00:03]}  Kh6 {[%clk 0:00:08]} 44. Rxf6+ {[%clk 0:00:03]}  Kh5 {[%clk 0:00:09]} 45. Qxg6+ {[%clk 0:00:03]}  Kh4 {[%clk 0:00:09]} 46. Qg5+ {[%clk 0:00:04]}  Kh3 {[%clk 0:00:08]} 47. Rf3# {[%clk 0:00:05]} 1-0


[Site "https://www.chess.com"]

[Event "Titled Tuesday Blitz January 17 Early 2023"]
[White "Aldokhin, Ivan"]
[Black "Rozman, Levy"]
[WhiteFideId "24115720"]
[BlackFideId "2039877"]
[WhiteElo "2413"]
[BlackElo "2322"]
[Result "0-1"]
[Round "10"]
[TimeControl "180+2"]
[Date "2023.01.17"]
[WhiteClock "0:00:11"]
[BlackClock "0:01:33"]

1. e4 {[%clk 0:03:00]}  e6 {[%clk 0:03:00]} 2. d4 {[%clk 0:02:59]}  d5 {[%clk 0:03:01]} 3. Nc3 {[%clk 0:02:59]}  dxe4 {[%clk 0:03:01]} 4. Nxe4 {[%clk 0:02:59]}  Nf6 {[%clk 0:03:02]} 5. Nxf6+ {[%clk 0:02:57]}  gxf6 {[%clk 0:03:03]} 6. Nf3 {[%clk 0:02:56]}  Nc6 {[%clk 0:03:03]} 7. g3 {[%clk 0:02:55]}  e5 {[%clk 0:03:04]} 8. Bg2 {[%clk 0:02:30]}  Bg4 {[%clk 0:03:01]} 9. h3 {[%clk 0:02:17]}  Bxf3 {[%clk 0:02:57]} 10. Bxf3 {[%clk 0:02:14]}  Qxd4 {[%clk 0:02:55]} 11. Qe2 {[%clk 0:01:57]}  O-O-O {[%clk 0:02:47]} 12. c3 {[%clk 0:01:45]}  Qb6 {[%clk 0:02:43]} 13. b4 {[%clk 0:01:40]}  f5 {[%clk 0:02:35]} 14. Be3 {[%clk 0:01:39]}  Nd4 {[%clk 0:02:30]} 15. cxd4 {[%clk 0:01:34]}  Bxb4+ {[%clk 0:02:23]} 16. Kf1 {[%clk 0:01:29]}  f4 {[%clk 0:02:21]} 17. gxf4 {[%clk 0:01:12]}  exd4 {[%clk 0:02:21]} 18. Bd2 {[%clk 0:01:04]}  d3 {[%clk 0:02:22]} 19. Qd1 {[%clk 0:01:01]}  Qd4 {[%clk 0:02:14]} 20. Bxb4 {[%clk 0:00:54]}  Qxb4 {[%clk 0:02:11]} 21. Rb1 {[%clk 0:00:54]}  Qc4 {[%clk 0:02:10]} 22. Bxb7+ {[%clk 0:00:51]}  Kd7 {[%clk 0:02:07]} 23. Qg4+ {[%clk 0:00:41]}  Kd6 {[%clk 0:01:55]} 24. Bf3 {[%clk 0:00:32]}  Rhg8 {[%clk 0:01:50]} 25. Qh5 {[%clk 0:00:14]}  d2+ {[%clk 0:01:50]} 26. Be2 {[%clk 0:00:12]}  Qc1+ {[%clk 0:01:51]} 27. Bd1 {[%clk 0:00:11]}  Qxb1 {[%clk 0:01:41]} 28. h4 {[%clk 0:00:11]}  Rde8 {[%clk 0:01:33]} 0-1


[Site "https://www.chess.com"]

[Event "Titled Tuesday Blitz January 17 Early 2023"]
[White "Bosnjak, Petar"]
[Black "Aradhya, Garg"]
[WhiteFideId "14532581"]
[BlackFideId "25006746"]
[WhiteElo "2337"]
[BlackElo "2284"]
[Result "1-0"]
[Round "10"]
[TimeControl "180+2"]
[Date "2023.01.17"]
[WhiteClock "0:00:09"]
[BlackClock "0:00:05"]

1. d4 {[%clk 0:03:00]}  d5 {[%clk 0:02:59]} 2. c4 {[%clk 0:02:59]}  c6 {[%clk 0:02:59]} 3. cxd5 {[%clk 0:02:59]}  cxd5 {[%clk 0:03:00]} 4. Nc3 {[%clk 0:03:00]}  Nc6 {[%clk 0:02:59]} 5. Bf4 {[%clk 0:03:00]}  Bf5 {[%clk 0:02:58]} 6. e3 {[%clk 0:02:58]}  e6 {[%clk 0:02:58]} 7. Qb3 {[%clk 0:02:58]}  Bb4 {[%clk 0:02:58]} 8. Ne2 {[%clk 0:02:50]}  Nf6 {[%clk 0:02:56]} 9. a3 {[%clk 0:02:49]}  Bxc3+ {[%clk 0:02:53]} 10. Nxc3 {[%clk 0:02:49]}  O-O {[%clk 0:02:53]} 11. Qxb7 {[%clk 0:02:44]}  Na5 {[%clk 0:02:53]} 12. Qc7 {[%clk 0:02:42]}  Nb3 {[%clk 0:02:53]} 13. Qxd8 {[%clk 0:02:36]}  Rfxd8 {[%clk 0:02:54]} 14. Rd1 {[%clk 0:01:41]}  Bc2 {[%clk 0:02:52]} 15. Ba6 {[%clk 0:01:41]}  Bxd1 {[%clk 0:02:02]} 16. Kxd1 {[%clk 0:01:40]}  Nh5 {[%clk 0:02:02]} 17. Be5 {[%clk 0:01:37]}  f6 {[%clk 0:02:02]} 18. Bc7 {[%clk 0:01:37]}  Rd7 {[%clk 0:01:58]} 19. Nb5 {[%clk 0:01:31]}  f5 {[%clk 0:01:48]} 20. Kc2 {[%clk 0:01:29]}  f4 {[%clk 0:01:43]} 21. Kxb3 {[%clk 0:01:27]}  fxe3 {[%clk 0:01:43]} 22. fxe3 {[%clk 0:01:26]}  Rf8 {[%clk 0:01:44]} 23. Rc1 {[%clk 0:01:20]}  Rf2 {[%clk 0:01:43]} 24. Rc2 {[%clk 0:01:20]}  Rxc2 {[%clk 0:01:42]} 25. Kxc2 {[%clk 0:01:20]}  Nf6 {[%clk 0:01:42]} 26. Bc8 {[%clk 0:01:19]}  Re7 {[%clk 0:01:41]} 27. h3 {[%clk 0:01:03]}  Ne4 {[%clk 0:01:35]} 28. a4 {[%clk 0:00:51]}  Re8 {[%clk 0:01:32]} 29. Bd7 {[%clk 0:00:48]}  Re7 {[%clk 0:01:32]} 30. Bc8 {[%clk 0:00:49]}  Re8 {[%clk 0:01:33]} 31. Ba6 {[%clk 0:00:47]}  Rf8 {[%clk 0:01:26]} 32. Nc3 {[%clk 0:00:25]}  Rf2+ {[%clk 0:01:26]} 33. Kb3 {[%clk 0:00:23]}  Nd2+ {[%clk 0:01:12]} 34. Ka3 {[%clk 0:00:19]}  Rxg2 {[%clk 0:01:11]} 35. b4 {[%clk 0:00:19]}  h5 {[%clk 0:01:00]} 36. Bd3 {[%clk 0:00:15]}  g5 {[%clk 0:01:00]} 37. b5 {[%clk 0:00:16]}  g4 {[%clk 0:00:59]} 38. hxg4 {[%clk 0:00:17]}  h4 {[%clk 0:01:00]} 39. a5 {[%clk 0:00:17]}  h3 {[%clk 0:00:16]} 40. b6 {[%clk 0:00:17]}  axb6 {[%clk 0:00:17]} 41. axb6 {[%clk 0:00:18]}  Rf2 {[%clk 0:00:10]} 42. b7 {[%clk 0:00:15]}  Rf8 {[%clk 0:00:11]} 43. b8=Q {[%clk 0:00:12]}  Rxb8 {[%clk 0:00:11]} 44. Bxb8 {[%clk 0:00:13]}  Nf3 {[%clk 0:00:09]} 45. Bg3 {[%clk 0:00:12]}  h2 {[%clk 0:00:09]} 46. Bxh2 {[%clk 0:00:12]}  Nxh2 {[%clk 0:00:10]} 47. g5 {[%clk 0:00:13]}  Nf3 {[%clk 0:00:09]} 48. g6 {[%clk 0:00:13]}  Kg7 {[%clk 0:00:10]} 49. Kb4 {[%clk 0:00:13]}  Kf6 {[%clk 0:00:10]} 50. Kc5 {[%clk 0:00:14]}  Nd2 {[%clk 0:00:05]} 51. Nxd5+ {[%clk 0:00:14]}  exd5 {[%clk 0:00:04]} 52. Kxd5 {[%clk 0:00:14]}  Nf3 {[%clk 0:00:05]} 53. Ke4 {[%clk 0:00:13]}  Ng5+ {[%clk 0:00:05]} 54. Kf4 {[%clk 0:00:13]}  Ne6+ {[%clk 0:00:06]} 55. Kg4 {[%clk 0:00:12]}  Ng7 {[%clk 0:00:06]} 56. e4 {[%clk 0:00:12]}  Kxg6 {[%clk 0:00:06]} 57. e5+ {[%clk 0:00:13]}  Kf7 {[%clk 0:00:07]} 58. Bc4+ {[%clk 0:00:13]}  Ke7 {[%clk 0:00:07]} 59. Kf4 {[%clk 0:00:13]}  Ne8 {[%clk 0:00:07]} 60. d5 {[%clk 0:00:14]}  Kd8 {[%clk 0:00:01]} 61. Kf5 {[%clk 0:00:13]}  Nc7 {[%clk 0:00:02]} 62. d6 {[%clk 0:00:12]}  Ne8 {[%clk 0:00:02]} 63. Ke6 {[%clk 0:00:11]}  Ng7+ {[%clk 0:00:02]} 64. Kd5 {[%clk 0:00:12]}  Ne8 {[%clk 0:00:03]} 65. e6 {[%clk 0:00:12]}  Nf6+ {[%clk 0:00:03]} 66. Kc6 {[%clk 0:00:11]}  Ne4 {[%clk 0:00:03]} 67. Bd5 {[%clk 0:00:08]}  Nf6 {[%clk 0:00:02]} 68. Bf3 {[%clk 0:00:07]}  Ne8 {[%clk 0:00:02]} 69. e7+ {[%clk 0:00:07]}  Kc8 {[%clk 0:00:03]} 70. Bg4+ {[%clk 0:00:08]}  Kb8 {[%clk 0:00:03]} 71. d7 {[%clk 0:00:07]}  Nf6 {[%clk 0:00:04]} 72. d8=Q+ {[%clk 0:00:07]}  Ka7 {[%clk 0:00:05]} 73. Qb6+ {[%clk 0:00:08]}  Ka8 {[%clk 0:00:05]} 74. Qb7# {[%clk 0:00:09]} 1-0


[Site "https://www.chess.com"]

[Event "Titled Tuesday Blitz January 17 Early 2023"]
[White "Vlassov, Nikolai"]
[Black "Salman, Pavel"]
[WhiteFideId "4103360"]
[BlackFideId "24153753"]
[WhiteElo "2283"]
[BlackElo "2287"]
[Result "1-0"]
[Round "10"]
[TimeControl "180+2"]
[Date "2023.01.17"]
[WhiteClock "0:00:22"]
[BlackClock "0:00:13"]

1. e4 {[%clk 0:03:00]}  c5 {[%clk 0:02:59]} 2. c3 {[%clk 0:02:57]}  Nf6 {[%clk 0:02:58]} 3. e5 {[%clk 0:02:57]}  Nd5 {[%clk 0:02:58]} 4. d4 {[%clk 0:02:58]}  cxd4 {[%clk 0:02:57]} 5. cxd4 {[%clk 0:02:59]}  e6 {[%clk 0:02:57]} 6. Nc3 {[%clk 0:02:58]}  Nxc3 {[%clk 0:02:57]} 7. bxc3 {[%clk 0:02:59]}  Qc7 {[%clk 0:02:57]} 8. Bd2 {[%clk 0:03:00]}  b6 {[%clk 0:02:58]} 9. f4 {[%clk 0:03:00]}  Be7 {[%clk 0:02:56]} 10. Nf3 {[%clk 0:03:00]}  O-O {[%clk 0:02:56]} 11. Bd3 {[%clk 0:03:00]}  Ba6 {[%clk 0:02:57]} 12. Be4 {[%clk 0:02:38]}  Bb7 {[%clk 0:02:48]} 13. Bb1 {[%clk 0:02:37]}  Qc4 {[%clk 0:02:47]} 14. h4 {[%clk 0:02:32]}  g6 {[%clk 0:02:25]} 15. h5 {[%clk 0:02:31]}  Nc6 {[%clk 0:02:24]} 16. hxg6 {[%clk 0:02:30]}  fxg6 {[%clk 0:02:24]} 17. Qc2 {[%clk 0:02:27]}  Ba6 {[%clk 0:02:17]} 18. Kf2 {[%clk 0:02:17]}  Rf7 {[%clk 0:01:54]} 19. a4 {[%clk 0:02:14]}  Raf8 {[%clk 0:01:50]} 20. Kg3 {[%clk 0:02:12]}  Bd8 {[%clk 0:01:17]} 21. Ba2 {[%clk 0:02:08]}  Qd3 {[%clk 0:01:17]} 22. Qxd3 {[%clk 0:02:08]}  Bxd3 {[%clk 0:01:18]} 23. d5 {[%clk 0:02:08]}  Ne7 {[%clk 0:01:08]} 24. dxe6 {[%clk 0:02:04]}  Nf5+ {[%clk 0:01:08]} 25. Kf2 {[%clk 0:02:03]}  dxe6 {[%clk 0:01:03]} 26. Bxe6 {[%clk 0:02:03]}  Be7 {[%clk 0:01:03]} 27. g4 {[%clk 0:01:31]}  Bc5+ {[%clk 0:01:01]} 28. Kg2 {[%clk 0:01:27]}  Ng7 {[%clk 0:00:59]} 29. Bd5 {[%clk 0:01:12]}  Rd8 {[%clk 0:00:57]} 30. Bxf7+ {[%clk 0:01:12]}  Kxf7 {[%clk 0:00:57]} 31. Ng5+ {[%clk 0:01:09]}  Kg8 {[%clk 0:00:56]} 32. Rxh7 {[%clk 0:00:41]}  Be4+ {[%clk 0:00:47]} 33. Nxe4 {[%clk 0:00:40]}  Kxh7 {[%clk 0:00:43]} 34. Nf6+ {[%clk 0:00:41]}  Kh8 {[%clk 0:00:44]} 35. Rh1+ {[%clk 0:00:40]}  Nh5 {[%clk 0:00:44]} 36. Bc1 {[%clk 0:00:37]}  Rd3 {[%clk 0:00:37]} 37. gxh5 {[%clk 0:00:36]}  gxh5 {[%clk 0:00:36]} 38. Rxh5+ {[%clk 0:00:35]}  Kg7 {[%clk 0:00:37]} 39. f5 {[%clk 0:00:29]}  Be3 {[%clk 0:00:26]} 40. Bxe3 {[%clk 0:00:27]}  Rxe3 {[%clk 0:00:27]} 41. Ng4 {[%clk 0:00:27]}  Rxc3 {[%clk 0:00:25]} 42. e6 {[%clk 0:00:26]}  Rc4 {[%clk 0:00:24]} 43. Kg3 {[%clk 0:00:25]}  Rxa4 {[%clk 0:00:23]} 44. Rg5+ {[%clk 0:00:24]}  Kf8 {[%clk 0:00:21]} 45. f6 {[%clk 0:00:24]}  Re4 {[%clk 0:00:21]} 46. Nh6 {[%clk 0:00:23]}  Rxe6 {[%clk 0:00:13]} 47. Rg8# {[%clk 0:00:22]} 1-0


[Site "https://www.chess.com"]